Cogmind - Beta 10.2 *** ADVENTURER MODE // 2020.11.13 @ 15:57:27 // Halloween2020/ForbiddenLore Player: STB Result: Destroyed by G-34 Mercenary with Small Laser Performance ------------- Evolutions (0) 0 Regions Visited (1) 200 Robots Destroyed (14) 70 Value Destroyed (327) 327 Prototype IDs (0) 0 Alien Tech Used (0) 0 Bonus (0) 0 TOTAL SCORE: 597 Bonus ------- None Cogmind --------- Core Integrity 0/250 Matter 285/300 Energy 240/250 System Corruption 0% Temperature Cool (6) Movement Treading (160) Location -10/Materials Parts ------- > --- POWER (1) -------- Ion Engine > --- PROPULSION (2) --- Light Treads Light Treads > --- UTILITY (2) ------ Cooling System Large Storage Unit > --- WEAPON (2) ------- Welding Torch > --- INVENTORY (10) --- Improved Sensor Array Terrain Scanner Core Shielding Datajack Peak State ------------ > --- POWER ------------ Ion Engine > --- PROPULSION ------- Light Treads Light Treads > --- UTILITY ---------- Improved Heat Sink Small Storage Unit > --- WEAPON ----------- EM Pulse Gun Assault Rifle > --- INVENTORY -------- Terrain Scanner Datajack [Rating: 9] Favorites ----------- Power Ion Engine Engine Ion Engine Propulsion Light Treads Treads Light Treads Utility Small Storage Unit Device Improved Heat Sink Storage Small Storage Unit Weapon EM Pulse Gun Energy Gun EM Pulse Gun Ballistic Gun Assault Rifle Special Weapon Welding Torch Special Melee Weapon Datajack Build | -11 -10 ------- Run | Scr Mat Slots Evolved . | . . Power . | . . Propulsion . | . . Utility . | . . Weapon . | . . Parts Attached 33 | 6 27 Power 2 | 1 1 Engine 2 | 1 1 Core . | . . Reactor . | . . Propulsion 3 | 2 1 Treads 3 | 2 1 Leg . | . . Wheel . | . . Hover . | . . Flight . | . . Utility 5 | 1 4 Device 3 | . 3 Storage 2 | 1 1 Processor . | . . Hackware . | . . Protection . | . . Artifact . | . . Weapon 23 | 2 21 Energy Gun 11 | 1 10 Energy Cannon . | . . Ballistic Gun 2 | 1 1 Ballistic Cannon . | . . Launcher . | . . Special Weapon 1 | . 1 Impact Weapon . | . . Slashing Weapon . | . . Piercing Weapon . | . . Special Melee Weapon 9 | . 9 Unidentified Prototypes . | . . Parts Lost 3 | . 3 Power . | . . Propulsion . | . . Utility . | . . Weapon 3 | . 3 Highest Loss Streak 3 | . 3 Average Slot Usage (%) 97 | . 97 Engine 13 | . 13 Treads 27 | . 27 Device 12 | . 12 Storage 14 | . 14 Energy Gun 20 | . 20 Ballistic Gun 3 | . 3 Special Melee Weapon 4 | . 4 Naked Turns . | . . Heaviest Build 27 | 13 27 Greatest Support 40 | 40 40 Greatest Overweight (x) 1 | 1 1 Average Overweight (x) . | . . Largest Inventory Capacity 10 | 6 10 Average Capacity 7 | 5 7 Most Carried 6 | 2 6 Average Carried 3 | . 3 Final Capacity 10 | 6 10 Final Carried 4 | . 4 Class Distribution -------------------- 100% | Mutant Dominant Class ---------------- Mutant | -10/Materials Resources | -11 -10 ----------- Run | Scr Mat Matter Collected 517 | 237 280 Remotely . | . . Salvage Created 498 | . 498 Parts 30 | . 30 Haulers Intercepted . | . . Recyclers Shooed . | . . Parts Field Recycled . | . . Retrieved Matter . | . . Parts Self-Destructed . | . . Prevented . | . . Kills | -11 -10 ------- Run | Scr Mat Combat Hostiles Destroyed 9 | . 9 Guns 7 | . 7 AOE 2 | . 2 Classes Destroyed 4 | . 4 Recycler 2 | . 2 Watcher 3 | . 3 Swarmer 3 | . 3 Grunt 6 | . 6 Best Kill Streak 4 | . 4 Combat Bots Only 3 | . 3 Max Kills in Single Turn 2 | . 2 Gunslinging 1 | . 1 Exploded 2 | . 2 Melee . | . . Uniques/NPCs Destroyed . | . . Combat | -11 -10 -------- Run | Scr Mat Damage Taken 765 | . 765 Core 253 | . 253 Absorbed by Shields . | . . Core Remaining (%) 100 | 100 . Volleys Fired 35 | . 35 Largest 2 | . 2 Hottest 90 | . 90 Shots Fired 69 | . 69 Gun 69 | . 69 Cannon . | . . Launcher . | . . Special . | . . Kinetic 12 | . 12 Thermal 22 | . 22 Explosive . | . . Electromagnetic 35 | . 35 Robot Hit Streak 14 | . 14 Robot Miss Streak 2 | . 2 Penetration Max . | . . Secondary Targets 1 | . 1 Max Gunslinging Chain 1 | . 1 Shots Hit Robots 60 | . 60 Core Hits 22 | . 22 Critical Hits . | . . Critical Kills . | . . Critical Parts Destroyed . | . . Melee Attacks 8 | . 8 Impact . | . . Slashing . | . . Piercing . | . . Sneak Attacks 5 | . 5 Combat Hostiles . | . . Follow-up Attacks . | . . Damage Inflicted 957 | . 957 Guns 663 | . 663 Cannons . | . . Explosions 283 | . 283 Melee . | . . Ramming 11 | . 11 Kinetic 93 | . 93 Thermal 461 | . 461 Explosive . | . . Electromagnetic 392 | . 392 Impact . | . . Slashing . | . . Piercing . | . . Highest Corruption . | . . Average Corruption . | . . Corruption Purged . | . . Overload Shots . | . . Overflow Damage 72 | . 72 Projectiles . | . . Explosions 72 | . 72 Melee . | . . Knockbacks . | . . Impact . | . . Kinetic . | . . Secondary . | . . Self-Inflicted Damage 101 | . 101 Shots 2 | . 2 Rammed 2 | . 2 Targets Rammed 2 | . 2 Kicked . | . . Crushed . | . . Highest Temperature 12 | . 12 Average Temperature 5 | . 5 Received Heat Transfer 405 | . 405 Siege Activations . | . . Robots Corrupted . | . . Combat Hostiles . | . . Parts Fried 2 | . 2 Impact Corruptions . | . . Robots Melted . | . . Combat Hostiles . | . . Parts Melted 1 | . 1 Heat Transferred 718 | . 718 Parts Sabotaged . | . . Parts Stolen . | . . Parts Stripped . | . . Power Chain Reactions 1 | . 1 Missiles Intercepted . | . . Alert | -11 -10 ------- Run | Scr Mat Peak Influence 92 | . 92 Initial . | . . Average 23 | . 25 Maximum Alert Level . | . . Low Security (%) 100 | 100 100 Level 1 . | . . Level 2 . | . . Level 3 . | . . Level 4 . | . . Level 5 . | . . High Security . | . . Max Security . | . . Squads Dispatched 4 | . 4 Investigation 4 | . 4 Extermination . | . . Reinforcement . | . . Assault . | . . Garrison . | . . Intercept . | . . Construction Impeded . | . . Haulers Reinforced . | . . Stealth | -11 -10 --------- Run | Scr Mat Distress Signals . | . . Communications Jammed . | . . Distress Signals . | . . Times Spotted 19 | . 19 Peak Tracking Total 6 | . 6 Tactical Retreats . | . . Traps | -11 -10 ------- Run | Scr Mat Traps Triggered 1 | . 1 Indirectly . | . . Trap Hack Attempts 49 | . 49 Triggered . | . . Disarmed 3 | . 3 Reprogrammed 5 | . 5 Reused 3 | . 3 Traps Extracted . | . . Installed . | . . Triggered 3 | . 3 Machines | -11 -10 ---------- Run | Scr Mat Machines Disabled 2 | . 2 Max in Single Turn 2 | . 2 Machines Sabotaged . | . . Garrisons Compromised . | . . Overloaded Fab Kills . | . . Fab Network Shutdowns . | . . Hacking | -11 -10 --------- Run | Scr Mat Machines Accessed 6 | . 6 Terminals 4 | . 4 Fabricators . | . . Repair Stations 1 | . 1 Recycling Units 1 | . 1 Scanalyzers . | . . Garrison Access . | . . Total Hacks 31 | . 31 Successful 27 | . 27 Failed 4 | . 4 Catastrophic . | . . Database Lockouts . | . . Manual . | . . Terminals 21 | . 21 Fabricators . | . . Repair Stations 6 | . 6 Recycling Units 4 | . 4 Scanalyzers . | . . Garrison Access . | . . Terminal Hacks 17 | . 17 Record 10 | . 10 Robot Analysis 1 | . 1 Level Access Points 1 | . 1 Emergency Access Points 1 | . 1 Alert Level 1 | . 1 Unreport Threat 1 | . 1 Locate Traps 1 | . 1 Recall Reinforcements 1 | . 1 Fabricator Hacks . | . . Repair Station Hacks 6 | . 6 Scan Component 3 | . 3 Repair 3 | . 3 Recycling Unit Hacks 4 | . 4 Process 1 | . 1 Report Inventory 1 | . 1 Retrieve Matter 1 | . 1 Retrieve Components 1 | . 1 Scanalyzer . | . . Garrison Access Hacks . | . . Unauthorized Hacks . | . . Terminals . | . . Fabricators . | . . Repair Stations . | . . Recycling Units . | . . Scanalyzers . | . . Garrison Access . | . . Data Cores Recovered . | . . Used . | . . Hacking Detections 5 | . 5 Full Trace Events 4 | . 4 Feedback Events . | . . Feedback Blocked . | . . Robot Schematics Acquired . | . . Robots Built . | . . Matter . | . . Time . | . . Total Robot Build Rating . | . . Part Schematics Acquired . | . . Parts Built . | . . Matter . | . . Time . | . . Total Part Build Rating . | . . Parts Repaired 3 | . 3 Time 78 | . 78 Parts Recycled . | . . Recycled Matter . | . . Retrieved Matter 62 | . 62 Retrieved Components 9 | . 9 Parts Scanalyzed . | . . Part Schematics Acquired . | . . Parts Damaged . | . . Bothacking | -11 -10 ------------ Run | Scr Mat Used RIF Installer . | . . Robots Hacked 3 | . 3 Non-combat 3 | . 3 Combat . | . . Robot Hacks Applied 3 | . 3 parse_system 2 | . 2 find_recycling 1 | . 1 Relay Couplers Released . | . . Robots Rewired . | . . Allies Hacked . | . . Hacks Repelled . | . . Allies | -11 -10 -------- Run | Scr Mat Total Allies . | . . Largest Group . | . . Highest-Rated Group . | . . Highest-Rated Ally . | . . Total Orders . | . . Ally Attacks . | . . Total Damage . | . . Kills . | . . Allies Corrupted . | . . Allies Melted . | . . Intel | -11 -10 ------- Run | Scr Mat Robot Analysis Total 1 | . 1 Derelict Logs Recovered . | . . Drone Launches . | . . Drone Recoveries . | . . Exploration | -11 -10 ------------- Run | Scr Mat Turns Passed 1703 | 95 1608 Spaces Moved 917 | 55 862 Core 5 | 5 . Treads 912 | 50 862 Legs . | . . Wheels . | . . Hover . | . . Flight . | . . Fastest Speed 50 | 50 160 Average Speed 159 | 152 160 Slowest Speed 180 | 160 180 Overloaded Moves . | . . Propulsion Burnouts . | . . Robots Hopped . | . . Cave-ins Triggered . | . . Exploration Rate (%) 34 | 4 65 Regions Visited 1 Branch Regions . Pre-discovered Areas . | . . Known Exits Taken . | . . Unknown Exits Taken 1 | 1 . Scrap Searched . | . . Spaces Dug . | . . Terrain Destroyed 33 | . 33 Melee . | . . Projectile . | . . AOE 33 | . 33 Terrain Rammed . | . . Walls Destroyed . | . . Machines Disabled . | . . Actions | -11 -10 --------- Run | Scr Mat Total 1067 | 66 1001 Wait . | . . Move 916 | 54 862 Hop . | . . Pick Up 20 | 6 14 Fast Attach . | . . Attach 11 | 6 5 Detach . | . . Swap 22 | . 22 Drop 4 | . 4 Fire 35 | . 35 Melee 8 | . 8 Ram . | . . Kick . | . . Crush 2 | . 2 Escape Stasis . | . . Rewire . | . . Trap 49 | . 49 Miscellaneous . | . . Route ------- -11/Scrapyard -10/Materials (discovered 4 exits: *Mat x3 / [*Min]) History --------- Turn | Location | Event 6 | -11/Scrapyard | Discovered new exit (range 15) 96 | -11/Scrapyard | Entered Materials 307 | -10/Materials | Build established: Mutant 529 | -10/Materials | Discovered new exit (range 7) 716 | -10/Materials | Identified exit to Materials 1257 | -10/Materials | Core integrity fell below 50% 1559 | -10/Materials | Repaired Med. Laser 1592 | -10/Materials | Repaired Lgt. Treads 1621 | -10/Materials | Repaired Ion Engine 1677 | -10/Materials | Core integrity fell below 20% 1704 | -10/Materials | Destroyed by G-34 Mercenary with Small Laser Last Messages --------------- Time: 26 >>Repair Repairing Ion Engine... ETC: 26 ALERT: Suspicious activity at Repair Station M001. Dispatching Investigation squad. Repair station completes Ion Engine repairs. Acquired Ion Engine. Material Compactor disabled. M-13 Machinist fits Backup Power I on G-34 Mercenary. Acquired 26 matter. M-13 Machinist fits Backup Propulsion I on G-34 Mercenary. U-05 Engineer lays Concrete. Slammed into U-05 Engineer. Med. Laser destroyed. M-13 Machinist fits Backup Propulsion I on G-34 Mercenary. Med. Laser destroyed. G-34 Mercenary destroyed. EM Pulse Gun destroyed. Acquired Welding Torch. Map ----- +----------------------------------------------------+ | # # # # #???????????? | | """ """ # # """ # """ # < #???????????? | | """ """ # # """ # """ # #???????????? | | """ """ + + """ # """ # #???????????? | | # # # ## #????????????? | | = # # ####+#####?# ###########???? | | # ######## ##### # !! #???? | | # + ! #???? | | ########## # !! #???? | | ?????????#"" "" # #???? | | ?????????#"T """"" ######### " " #???? | | ?????????#"" """"" %#?? ????# "R" #???? | | ########## % """"" #???????# """ #???? | | ## """ #???????# #???? | | # ^ #??? ???###########???? | | # *= #?????????????????????? | | + ^[== ##+###????????????????? | | """ """ # * #########????????? | | """ """ # m # """ #????????? | | """ """ # # "T" #????????? | | # g # #????????? | | ###############"T"#####g### # #????????? | | ??????????????#"""#?# + + #????????? | | ?????????############ g## #############????? | | ?????????# ## ## #????? | | ????????## """"""""##""" @## ######### #????? | | ????????# " % #""" ## #???????# ###### | | ????????## " #""" ## #???????# # # | | ???#######" # + #######?# # # | | ???# =" #""" ## ## """ # # # | | ???# " " #""" ####### """ # # # | | #??# T "" % #""" #?????# """ + + # | | #??# " "" # #?????# # # # | | #??# ## # #?????# # # != # | | #??# ## #######?????# ?# # == # | | ######+########/########################% # # | | ###### | | #????? | | %% #????? | | #+##### # ##+####+############### #????? | | ##! !# # #????????# #????? | | ##! !# # # #????????+ ###### | | ###! !!## # % + #????????# # # | | #?####### # "" = #????????# # # | | #???????# # "Y=* #????????# # # | | #???????# # ""*= #????????# # # | | #???????# # !*! #######????????# + # | | ######???????# ########??????????????# # "# | | ?????????????# #?????????????????????# # T# | | ?????????????# #?????????????????????# # "# | +----------------------------------------------------+ Best States ------------- Heat Dissipation 47 Energy Generation 10 Energy Capacity 250 Matter Stores 300 Matter Capacity 300 Sight Range 16 Terrain Scan Range 14 Terrain Scan Density 10 Resistance: KI 20 Resistance: TH 20 Resistance: EX 20 Resistance: EM 20 Resistance: I 20 Resistance: S 20 Resistance: P 20 Evasion (%) 40 Recoil Reduction 2 Offensive Hacking 10 Item Schematics ----------------- None Robot Schematics ------------------ None Fabricated ------------ Nothing Alien Tech Used ----------------- None Achievements -------------- Hehehe Challenges ------------ None Game ------ Seed ImpulseMolecularSteel Manual? 0 Play Time 00:16:27 Cumulative 9.7 hours Start 2020.11.13 @ 15:43:12 End 2020.11.13 @ 15:57:27 Sessions 1 Manual Loads 0 Difficulty Adventurer Special Mode Halloween2020/ForbiddenLore Game No. 37 Rogue 1 Adventurer 36 Explorer 0 Win Type - Total 0 Types 0/0/0/0/0/0/0/0/0 Lore% 7 Gallery% 16 Achievement% 12 Wizard Run 0 Options --------- ASCII 0 Keyboard 0 Movement Mouse Keybinds 0 Fullscreen 1 Font 18/SmallcapsGlow Map View 76x50 Tactical HUD 0 Map Filters NONE Filters NONE Steam 1 RUN: 7a8a3ab3-a7c4-4259-969f-bd29f384b7e9